[Event "Titled Tuesday Blitz May 30 Early 2023"]
[White "Dubreuil, Julien"]
[Black "Toncheva, Nadya"]
[WhiteFideId "621285"]
[BlackFideId "2924056"]
[WhiteElo "2326"]
[BlackElo "2101"]
[Result "1/2-1/2"]
[Round "05"]
[TimeControl "180+2"]
[Date "2023.05.30"]
[WhiteClock "0:00:13"]
[BlackClock "0:00:05"]

1. e4 {[%clk 0:03:00]}  c5 {[%clk 0:02:59]} 2. Nf3 {[%clk 0:02:59]}  Nc6 {[%clk 0:02:57]} 3. d4 {[%clk 0:02:59]}  cxd4 {[%clk 0:02:57]} 4. Nxd4 {[%clk 0:03:00]}  g6 {[%clk 0:02:58]} 5. c4 {[%clk 0:02:59]}  Bg7 {[%clk 0:02:58]} 6. Be3 {[%clk 0:02:59]}  Nf6 {[%clk 0:02:59]} 7. Nc3 {[%clk 0:02:59]}  O-O {[%clk 0:02:59]} 8. f3 {[%clk 0:02:59]}  d6 {[%clk 0:03:00]} 9. Qd2 {[%clk 0:02:59]}  Nxd4 {[%clk 0:03:00]} 10. Bxd4 {[%clk 0:02:59]}  Bd7 {[%clk 0:03:01]} 11. O-O-O {[%clk 0:02:58]}  a5 {[%clk 0:03:01]} 12. Kb1 {[%clk 0:02:58]}  a4 {[%clk 0:03:01]} 13. h4 {[%clk 0:02:58]}  Qa5 {[%clk 0:03:01]} 14. h5 {[%clk 0:02:57]}  a3 {[%clk 0:02:43]} 15. hxg6 {[%clk 0:02:56]}  hxg6 {[%clk 0:02:12]} 16. g4 {[%clk 0:01:29]}  Qb4 {[%clk 0:01:37]} 17. b3 {[%clk 0:00:40]}  Rfc8 {[%clk 0:01:35]} 18. Bxf6 {[%clk 0:00:33]}  Bxf6 {[%clk 0:01:31]} 19. Nd5 {[%clk 0:00:34]}  Qxd2 {[%clk 0:01:16]} 20. Nxf6+ {[%clk 0:00:33]}  exf6 {[%clk 0:01:17]} 21. Rxd2 {[%clk 0:00:33]}  b5 {[%clk 0:00:57]} 22. Rxd6 {[%clk 0:00:32]}  Be6 {[%clk 0:00:53]} 23. Rh2 {[%clk 0:00:23]}  bxc4 {[%clk 0:00:52]} 24. Bxc4 {[%clk 0:00:18]}  Bxc4 {[%clk 0:00:48]} 25. bxc4 {[%clk 0:00:18]}  Rab8+ {[%clk 0:00:48]} 26. Kc1 {[%clk 0:00:18]}  Rxc4+ {[%clk 0:00:47]} 27. Rc2 {[%clk 0:00:18]}  Rcb4 {[%clk 0:00:47]} 28. Rd3 {[%clk 0:00:17]}  Rb1+ {[%clk 0:00:40]} 29. Kd2 {[%clk 0:00:17]}  Ra8 {[%clk 0:00:33]} 30. Rcc3 {[%clk 0:00:17]}  Rb2+ {[%clk 0:00:32]} 31. Rc2 {[%clk 0:00:18]}  Kg7 {[%clk 0:00:23]} 32. Rc3 {[%clk 0:00:13]}  Rd8+ {[%clk 0:00:22]} 33. Rd3 {[%clk 0:00:13]}  Rh8 {[%clk 0:00:17]} 34. Rxb2 {[%clk 0:00:12]}  Rh2+ {[%clk 0:00:16]} 35. Kc3 {[%clk 0:00:12]}  axb2 {[%clk 0:00:16]} 36. Rd1 {[%clk 0:00:12]}  b1=Q {[%clk 0:00:09]} 37. Rxb1 {[%clk 0:00:12]}  Rxa2 {[%clk 0:00:10]} 38. Kd3 {[%clk 0:00:11]}  Kf8 {[%clk 0:00:09]} 39. Ke3 {[%clk 0:00:11]}  Ke7 {[%clk 0:00:09]} 40. Kf4 {[%clk 0:00:11]}  Ra3 {[%clk 0:00:09]} 41. Kg3 {[%clk 0:00:11]}  Ke6 {[%clk 0:00:09]} 42. Rb5 {[%clk 0:00:11]}  Rc3 {[%clk 0:00:07]} 43. Kf4 {[%clk 0:00:12]}  Ra3 {[%clk 0:00:07]} 44. Rb6+ {[%clk 0:00:12]}  Ke7 {[%clk 0:00:07]} 45. g5 {[%clk 0:00:12]}  fxg5+ {[%clk 0:00:07]} 46. Kxg5 {[%clk 0:00:13]}  Rxf3 {[%clk 0:00:07]} 47. Kg4 {[%clk 0:00:12]}  Rf1 {[%clk 0:00:07]} 48. Ra6 {[%clk 0:00:12]}  Kf8 {[%clk 0:00:07]} 49. Rb6 {[%clk 0:00:12]}  Kg7 {[%clk 0:00:08]} 50. e5 {[%clk 0:00:12]}  Kf8 {[%clk 0:00:07]} 51. Ra6 {[%clk 0:00:11]}  Rf5 {[%clk 0:00:08]} 52. e6 {[%clk 0:00:10]}  f6 {[%clk 0:00:06]} 53. Ra7 {[%clk 0:00:09]}  Ke8 {[%clk 0:00:05]} 54. Rg7 {[%clk 0:00:09]}  Re5 {[%clk 0:00:04]} 55. Rxg6 {[%clk 0:00:09]}  Rxe6 {[%clk 0:00:05]} 56. Kf5 {[%clk 0:00:09]}  Kf7 {[%clk 0:00:06]} 57. Rh6 {[%clk 0:00:09]}  Re5+ {[%clk 0:00:06]} 58. Kf4 {[%clk 0:00:09]}  Ra5 {[%clk 0:00:06]} 59. Rh7+ {[%clk 0:00:09]}  Ke6 {[%clk 0:00:07]} 60. Rb7 {[%clk 0:00:09]}  Ra4+ {[%clk 0:00:08]} 61. Kf3 {[%clk 0:00:10]}  Kf5 {[%clk 0:00:08]} 62. Rb5+ {[%clk 0:00:10]}  Kg6 {[%clk 0:00:09]} 63. Rc5 {[%clk 0:00:10]}  f5 {[%clk 0:00:09]} 64. Rc8 {[%clk 0:00:10]}  Kg5 {[%clk 0:00:06]} 65. Rg8+ {[%clk 0:00:10]}  Kf6 {[%clk 0:00:07]} 66. Rf8+ {[%clk 0:00:11]}  Ke6 {[%clk 0:00:08]} 67. Re8+ {[%clk 0:00:11]}  Kf7 {[%clk 0:00:08]} 68. Rd8 {[%clk 0:00:11]}  Ra7 {[%clk 0:00:06]} 69. Rc8 {[%clk 0:00:11]}  Kf6 {[%clk 0:00:07]} 70. Rf8+ {[%clk 0:00:11]}  Ke5 {[%clk 0:00:06]} 71. Re8+ {[%clk 0:00:11]}  Kd5 {[%clk 0:00:06]} 72. Rf8 {[%clk 0:00:12]}  Ke6 {[%clk 0:00:06]} 73. Re8+ {[%clk 0:00:12]}  Kf7 {[%clk 0:00:05]} 74. Rd8 {[%clk 0:00:13]}  Ra6 {[%clk 0:00:06]} 75. Rc8 {[%clk 0:00:13]}  Kf6 {[%clk 0:00:05]} 76. Rf8+ {[%clk 0:00:13]}  Ke5 {[%clk 0:00:06]} 77. Re8+ {[%clk 0:00:13]}  Re6 {[%clk 0:00:05]} 78. Rxe6+ {[%clk 0:00:13]}  Kxe6 {[%clk 0:00:06]} 79. Kf4 {[%clk 0:00:13]}  Kf6 {[%clk 0:00:05]} 1/2-1/2


[Site "https://www.chess.com"]

[Event "Titled Tuesday Blitz May 30 Early 2023"]
[White "Fajdetic, Hrvoje"]
[Black "Herman, Daniel"]
[WhiteFideId "14501945"]
[BlackFideId "30935008"]
[WhiteElo "2185"]
[BlackElo "1897"]
[Result "1-0"]
[Round "05"]
[TimeControl "180+2"]
[Date "2023.05.30"]
[WhiteClock "0:00:07"]
[BlackClock "0:00:26"]

1. d4 {[%clk 0:02:40]}  Nf6 {[%clk 0:02:59]} 2. Bf4 {[%clk 0:02:39]}  g6 {[%clk 0:02:59]} 3. Nc3 {[%clk 0:02:39]}  d5 {[%clk 0:02:57]} 4. e3 {[%clk 0:02:39]}  Bg7 {[%clk 0:02:56]} 5. h4 {[%clk 0:02:39]}  h5 {[%clk 0:02:50]} 6. f3 {[%clk 0:02:39]}  c5 {[%clk 0:02:45]} 7. Qd2 {[%clk 0:02:38]}  Nc6 {[%clk 0:02:43]} 8. O-O-O {[%clk 0:02:36]}  Bf5 {[%clk 0:02:38]} 9. dxc5 {[%clk 0:02:23]}  e5 {[%clk 0:02:31]} 10. Bg5 {[%clk 0:02:22]}  d4 {[%clk 0:02:30]} 11. exd4 {[%clk 0:01:56]}  Nxd4 {[%clk 0:02:23]} 12. Bb5+ {[%clk 0:01:36]}  Nxb5 {[%clk 0:02:20]} 13. Qxd8+ {[%clk 0:01:23]}  Rxd8 {[%clk 0:02:21]} 14. Rxd8+ {[%clk 0:01:23]}  Kxd8 {[%clk 0:02:21]} 15. Nxb5 {[%clk 0:01:22]}  Be6 {[%clk 0:02:11]} 16. Nxa7 {[%clk 0:00:43]}  Kc7 {[%clk 0:02:10]} 17. a4 {[%clk 0:00:33]}  Ra8 {[%clk 0:02:04]} 18. Nb5+ {[%clk 0:00:32]}  Kc6 {[%clk 0:02:04]} 19. b3 {[%clk 0:00:30]}  Kxc5 {[%clk 0:01:59]} 20. Ne2 {[%clk 0:00:29]}  Nd5 {[%clk 0:01:53]} 21. Rd1 {[%clk 0:00:23]}  f6 {[%clk 0:01:34]} 22. Bd2 {[%clk 0:00:10]}  Bf8 {[%clk 0:00:55]} 23. c4 {[%clk 0:00:10]}  Nb4 {[%clk 0:00:39]} 24. Bxb4+ {[%clk 0:00:10]}  Kxb4 {[%clk 0:00:39]} 25. Nc7 {[%clk 0:00:10]}  Bh6+ {[%clk 0:00:35]} 26. Kb2 {[%clk 0:00:09]}  Ra6 {[%clk 0:00:29]} 27. Nxe6 {[%clk 0:00:08]}  Rxe6 {[%clk 0:00:29]} 28. Rd5 {[%clk 0:00:08]}  Bf8 {[%clk 0:00:26]} 29. Rb5# {[%clk 0:00:07]} 1-0


[Site "https://www.chess.com"]

[Event "Titled Tuesday Blitz May 30 Early 2023"]
[White "Pham, Le Thao Nguyen"]
[Black "Ardila, Oscar Humberto"]
[WhiteFideId "12401226"]
[BlackFideId "4404742"]
[WhiteElo "2286"]
[BlackElo "1918"]
[Result "1-0"]
[Round "05"]
[TimeControl "180+2"]
[Date "2023.05.30"]
[WhiteClock "0:01:11"]
[BlackClock "0:00:54"]

1. d4 {[%clk 0:02:55]}  Nf6 {[%clk 0:03:00]} 2. Nf3 {[%clk 0:02:54]}  g6 {[%clk 0:02:59]} 3. c4 {[%clk 0:02:53]}  Bg7 {[%clk 0:03:00]} 4. Nc3 {[%clk 0:02:53]}  O-O {[%clk 0:03:00]} 5. e4 {[%clk 0:02:53]}  d6 {[%clk 0:03:01]} 6. h3 {[%clk 0:02:54]}  Nbd7 {[%clk 0:03:01]} 7. Bd3 {[%clk 0:02:54]}  e5 {[%clk 0:03:01]} 8. O-O {[%clk 0:02:54]}  exd4 {[%clk 0:03:01]} 9. Nxd4 {[%clk 0:02:55]}  Nc5 {[%clk 0:03:01]} 10. Re1 {[%clk 0:02:54]}  Nxd3 {[%clk 0:03:00]} 11. Qxd3 {[%clk 0:02:53]}  Re8 {[%clk 0:03:01]} 12. Bg5 {[%clk 0:02:52]}  h6 {[%clk 0:03:00]} 13. Bh4 {[%clk 0:02:52]}  c6 {[%clk 0:02:22]} 14. Rad1 {[%clk 0:02:31]}  Qb6 {[%clk 0:02:12]} 15. b3 {[%clk 0:02:10]}  Nd7 {[%clk 0:02:03]} 16. Na4 {[%clk 0:01:52]}  Qa5 {[%clk 0:01:37]} 17. Bg3 {[%clk 0:01:44]}  Ne5 {[%clk 0:01:35]} 18. Qc2 {[%clk 0:01:40]}  b5 {[%clk 0:01:28]} 19. Bxe5 {[%clk 0:01:33]}  dxe5 {[%clk 0:01:16]} 20. Nxc6 {[%clk 0:01:32]}  Qa6 {[%clk 0:01:07]} 21. cxb5 {[%clk 0:01:14]}  Qxb5 {[%clk 0:01:06]} 22. Qc5 {[%clk 0:01:12]}  Qxc5 {[%clk 0:01:05]} 23. Nxc5 {[%clk 0:01:13]}  Bf8 {[%clk 0:01:03]} 24. Nd7 {[%clk 0:01:12]}  Ba3 {[%clk 0:00:56]} 25. Nf6+ {[%clk 0:01:11]}  Kf8 {[%clk 0:00:55]} 26. Nxe8 {[%clk 0:01:12]}  Kxe8 {[%clk 0:00:54]} 27. Rd8# {[%clk 0:01:11]} 1-0


[Site "https://www.chess.com"]

[Event "Titled Tuesday Blitz May 30 Early 2023"]
[White "Cupid, Kevin"]
[Black "Gurevich, Dmitry"]
[WhiteFideId "7700512"]
[BlackFideId "2000407"]
[WhiteElo "2124"]
[BlackElo "2506"]
[Result "1-0"]
[Round "05"]
[TimeControl "180+2"]
[Date "2023.05.30"]
[WhiteClock "0:00:12"]
[BlackClock "0:00:01"]

1. d4 {[%clk 0:03:00]}  Nf6 {[%clk 0:02:59]} 2. Nf3 {[%clk 0:03:00]}  e6 {[%clk 0:02:59]} 3. Bg5 {[%clk 0:02:59]}  c5 {[%clk 0:02:58]} 4. c3 {[%clk 0:02:59]}  Be7 {[%clk 0:02:52]} 5. e3 {[%clk 0:02:58]}  b6 {[%clk 0:02:52]} 6. Bd3 {[%clk 0:02:58]}  Bb7 {[%clk 0:02:52]} 7. O-O {[%clk 0:02:58]}  O-O {[%clk 0:02:49]} 8. Nbd2 {[%clk 0:02:58]}  cxd4 {[%clk 0:02:49]} 9. exd4 {[%clk 0:02:56]}  d6 {[%clk 0:02:49]} 10. Re1 {[%clk 0:02:55]}  Nbd7 {[%clk 0:02:48]} 11. a4 {[%clk 0:02:55]}  a6 {[%clk 0:02:49]} 12. Qe2 {[%clk 0:02:53]}  Re8 {[%clk 0:02:48]} 13. Nc4 {[%clk 0:02:52]}  Nf8 {[%clk 0:02:46]} 14. h3 {[%clk 0:02:51]}  Ng6 {[%clk 0:02:46]} 15. a5 {[%clk 0:02:49]}  b5 {[%clk 0:02:45]} 16. Nb6 {[%clk 0:02:49]}  Rb8 {[%clk 0:02:45]} 17. Nh4 {[%clk 0:02:45]}  Nxh4 {[%clk 0:02:35]} 18. Bxh4 {[%clk 0:02:45]}  Nd5 {[%clk 0:02:30]} 19. Bxe7 {[%clk 0:01:57]}  Qxe7 {[%clk 0:02:28]} 20. Nxd5 {[%clk 0:01:56]}  Bxd5 {[%clk 0:02:27]} 21. Qh5 {[%clk 0:01:56]}  g6 {[%clk 0:02:22]} 22. Qh6 {[%clk 0:01:56]}  Qf6 {[%clk 0:02:15]} 23. Re3 {[%clk 0:01:54]}  Qg7 {[%clk 0:02:13]} 24. Qh4 {[%clk 0:01:53]}  Bc4 {[%clk 0:02:03]} 25. Bc2 {[%clk 0:01:45]}  b4 {[%clk 0:01:52]} 26. b3 {[%clk 0:01:44]}  Bd5 {[%clk 0:01:48]} 27. c4 {[%clk 0:01:44]}  Ba8 {[%clk 0:01:46]} 28. Rae1 {[%clk 0:01:43]}  d5 {[%clk 0:01:39]} 29. Qf4 {[%clk 0:01:24]}  Rbc8 {[%clk 0:01:18]} 30. Bd3 {[%clk 0:01:19]}  dxc4 {[%clk 0:01:04]} 31. Bxc4 {[%clk 0:01:18]}  Rcd8 {[%clk 0:01:04]} 32. Bxa6 {[%clk 0:01:06]}  Rxd4 {[%clk 0:01:03]} 33. Qc7 {[%clk 0:01:05]}  Red8 {[%clk 0:01:01]} 34. Bc4 {[%clk 0:01:03]}  Kh8 {[%clk 0:00:54]} 35. Qb6 {[%clk 0:00:51]}  Qf8 {[%clk 0:00:48]} 36. Re5 {[%clk 0:00:36]}  Qd6 {[%clk 0:00:44]} 37. Qxd6 {[%clk 0:00:35]}  R8xd6 {[%clk 0:00:34]} 38. Rb5 {[%clk 0:00:35]}  Bd5 {[%clk 0:00:33]} 39. Rxb4 {[%clk 0:00:33]}  Bxc4 {[%clk 0:00:32]} 40. bxc4 {[%clk 0:00:25]}  Ra6 {[%clk 0:00:31]} 41. Ra1 {[%clk 0:00:25]}  Kg7 {[%clk 0:00:28]} 42. Kf1 {[%clk 0:00:24]}  Kf6 {[%clk 0:00:28]} 43. Ke2 {[%clk 0:00:24]}  Ke5 {[%clk 0:00:28]} 44. Ke3 {[%clk 0:00:24]}  Rd8 {[%clk 0:00:25]} 45. Rb5+ {[%clk 0:00:24]}  Kf6 {[%clk 0:00:22]} 46. Rb6 {[%clk 0:00:23]}  Ra7 {[%clk 0:00:20]} 47. c5 {[%clk 0:00:22]}  Rda8 {[%clk 0:00:19]} 48. a6 {[%clk 0:00:22]}  Ke5 {[%clk 0:00:18]} 49. Rb7 {[%clk 0:00:18]}  Kd5 {[%clk 0:00:15]} 50. Rc1 {[%clk 0:00:16]}  Rxa6 {[%clk 0:00:12]} 51. Rd7+ {[%clk 0:00:15]}  Kc6 {[%clk 0:00:10]} 52. Rxf7 {[%clk 0:00:15]}  R8a7 {[%clk 0:00:10]} 53. Rxa7 {[%clk 0:00:14]}  Rxa7 {[%clk 0:00:09]} 54. Ke4 {[%clk 0:00:15]}  Ra2 {[%clk 0:00:09]} 55. Kf3 {[%clk 0:00:11]}  Rd2 {[%clk 0:00:07]} 56. Rc3 {[%clk 0:00:11]}  e5 {[%clk 0:00:04]} 57. g4 {[%clk 0:00:11]}  Rd4 {[%clk 0:00:02]} 58. Ke3 {[%clk 0:00:11]}  Ra4 {[%clk 0:00:01]} 59. f3 {[%clk 0:00:10]}  Rb4 {[%clk 0:00:01]} 60. Kd3 {[%clk 0:00:10]}  Ra4 {[%clk 0:00:02]} 61. Ke3 {[%clk 0:00:10]}  Rd4 {[%clk 0:00:02]} 62. h4 {[%clk 0:00:11]}  Rb4 {[%clk 0:00:03]} 63. h5 {[%clk 0:00:11]}  h6 {[%clk 0:00:03]} 64. hxg6 {[%clk 0:00:11]}  Rb8 {[%clk 0:00:03]} 65. Ke4 {[%clk 0:00:11]}  Rg8 {[%clk 0:00:03]} 66. Kf5 {[%clk 0:00:12]}  Rf8+ {[%clk 0:00:01]} 67. Kxe5 {[%clk 0:00:12]} 1-0


[Site "https://www.chess.com"]

[Event "Titled Tuesday Blitz May 30 Early 2023"]
[White "Pg, Mohd Omar Ak Hira"]
[Black "Barbot, Pierre"]
[WhiteFideId "10500103"]
[BlackFideId "663727"]
[WhiteElo "2167"]
[BlackElo "2431"]
[Result "1-0"]
[Round "05"]
[TimeControl "180+2"]
[Date "2023.05.30"]
[WhiteClock "0:00:04"]
[BlackClock "0:00:00"]

1. e4 {[%clk 0:02:54]}  c6 {[%clk 0:02:59]} 2. d4 {[%clk 0:02:53]}  d5 {[%clk 0:02:59]} 3. Nc3 {[%clk 0:02:53]}  dxe4 {[%clk 0:02:58]} 4. Nxe4 {[%clk 0:02:54]}  Nf6 {[%clk 0:02:59]} 5. Ng3 {[%clk 0:02:42]}  h5 {[%clk 0:02:58]} 6. h4 {[%clk 0:02:31]}  Bg4 {[%clk 0:02:48]} 7. Nf3 {[%clk 0:02:21]}  e6 {[%clk 0:02:40]} 8. Bg5 {[%clk 0:02:09]}  Nbd7 {[%clk 0:02:33]} 9. Qd2 {[%clk 0:01:51]}  Qb6 {[%clk 0:02:29]} 10. O-O-O {[%clk 0:01:47]}  a5 {[%clk 0:02:06]} 11. Be2 {[%clk 0:01:33]}  a4 {[%clk 0:01:53]} 12. Ne5 {[%clk 0:01:33]}  a3 {[%clk 0:01:27]} 13. b3 {[%clk 0:01:31]}  Nd5 {[%clk 0:01:14]} 14. Nxd7 {[%clk 0:01:20]}  Kxd7 {[%clk 0:01:14]} 15. Bxg4 {[%clk 0:01:20]}  hxg4 {[%clk 0:01:13]} 16. c3 {[%clk 0:01:01]}  Qa5 {[%clk 0:01:05]} 17. Kc2 {[%clk 0:00:46]}  b5 {[%clk 0:01:04]} 18. Ne4 {[%clk 0:00:38]}  Kc8 {[%clk 0:00:28]} 19. Nc5 {[%clk 0:00:28]}  b4 {[%clk 0:00:19]} 20. c4 {[%clk 0:00:16]}  Nc3 {[%clk 0:00:19]} 21. Ra1 {[%clk 0:00:05]}  Bxc5 {[%clk 0:00:17]} 22. dxc5 {[%clk 0:00:06]}  Qxc5 {[%clk 0:00:17]} 23. Be3 {[%clk 0:00:06]}  Qf5+ {[%clk 0:00:16]} 24. Qd3 {[%clk 0:00:07]}  Qxd3+ {[%clk 0:00:15]} 25. Kxd3 {[%clk 0:00:07]}  Kc7 {[%clk 0:00:06]} 26. Bd2 {[%clk 0:00:07]}  Rad8+ {[%clk 0:00:06]} 27. Kc2 {[%clk 0:00:08]}  Ne4 {[%clk 0:00:03]} 28. Bxb4 {[%clk 0:00:08]}  Nxf2 {[%clk 0:00:03]} 29. Rhe1 {[%clk 0:00:07]}  g3 {[%clk 0:00:03]} 30. Bxa3 {[%clk 0:00:06]}  Rd7 {[%clk 0:00:02]} 31. Bb2 {[%clk 0:00:06]}  Rxh4 {[%clk 0:00:02]} 32. Bxg7 {[%clk 0:00:05]}  Rh2 {[%clk 0:00:02]} 33. Be5+ {[%clk 0:00:05]}  Kb7 {[%clk 0:00:02]} 34. Bxg3 {[%clk 0:00:05]}  Rxg2 {[%clk 0:00:02]} 35. Re2 {[%clk 0:00:05]}  Rxg3 {[%clk 0:00:01]} 36. Rxf2 {[%clk 0:00:06]}  f5 {[%clk 0:00:02]} 37. Re1 {[%clk 0:00:05]}  Re7 {[%clk 0:00:02]} 38. Rfe2 {[%clk 0:00:05]}  Rg6 {[%clk 0:00:02]} 39. Re5 {[%clk 0:00:05]}  Rf6 {[%clk 0:00:02]} 40. Kd3 {[%clk 0:00:05]}  Kc7 {[%clk 0:00:03]} 41. Ke3 {[%clk 0:00:04]}  f4+ {[%clk 0:00:03]} 42. Kf3 {[%clk 0:00:04]}  Kd6 {[%clk 0:00:03]} 43. R1e4 {[%clk 0:00:03]}  Rg7 {[%clk 0:00:02]} 44. c5+ {[%clk 0:00:03]}  Kd7 {[%clk 0:00:02]} 45. Rxf4 {[%clk 0:00:03]}  Rxf4+ {[%clk 0:00:02]} 46. Kxf4 {[%clk 0:00:04]}  Rg2 {[%clk 0:00:02]} 47. a4 {[%clk 0:00:03]}  Rb2 {[%clk 0:00:02]} 48. Re3 {[%clk 0:00:03]}  Rc2 {[%clk 0:00:03]} 49. b4 {[%clk 0:00:03]}  Rc4+ {[%clk 0:00:03]} 50. Re4 {[%clk 0:00:03]}  Rc3 {[%clk 0:00:03]} 51. Ke5 {[%clk 0:00:03]}  Ra3 {[%clk 0:00:03]} 52. a5 {[%clk 0:00:03]}  Kc7 {[%clk 0:00:03]} 53. Kxe6 {[%clk 0:00:01]}  Rd3 {[%clk 0:00:03]} 54. Ke7 {[%clk 0:00:02]}  Kb7 {[%clk 0:00:03]} 55. Ke6 {[%clk 0:00:03]}  Ka6 {[%clk 0:00:03]} 56. Kf5 {[%clk 0:00:03]}  Kb5 {[%clk 0:00:04]} 57. Ke6 {[%clk 0:00:04]}  Rd1 {[%clk 0:00:04]} 58. Rf4 {[%clk 0:00:03]}  Rd2 {[%clk 0:00:04]} 59. Ke5 {[%clk 0:00:04]}  Rd8 {[%clk 0:00:03]} 60. Rd4 {[%clk 0:00:04]}  Re8+ {[%clk 0:00:03]} 61. Kf6 {[%clk 0:00:04]}  Re1 {[%clk 0:00:03]} 62. Kf7 {[%clk 0:00:04]}  Re2 {[%clk 0:00:03]} 63. Kf6 {[%clk 0:00:04]}  Re8 {[%clk 0:00:03]} 64. Kf5 {[%clk 0:00:04]}  Re7 {[%clk 0:00:03]} 65. Re4 {[%clk 0:00:05]}  Rd7 {[%clk 0:00:04]} 66. Ke6 {[%clk 0:00:05]}  Rd1 {[%clk 0:00:04]} 67. Ke5 {[%clk 0:00:05]}  Rd8 {[%clk 0:00:04]} 68. Rd4 {[%clk 0:00:06]}  Re8+ {[%clk 0:00:03]} 69. Kd6 {[%clk 0:00:06]}  Rh8 {[%clk 0:00:03]} 70. Kc7 {[%clk 0:00:06]}  Rh7+ {[%clk 0:00:03]} 71. Rd7 {[%clk 0:00:05]}  Rh4 {[%clk 0:00:02]} 72. Rd6 {[%clk 0:00:05]}  Rxb4 {[%clk 0:00:02]} 73. Rxc6 {[%clk 0:00:05]}  Ra4 {[%clk 0:00:02]} 74. Kd6 {[%clk 0:00:04]}  Rxa5 {[%clk 0:00:02]} 75. Rb6+ {[%clk 0:00:04]}  Kc4 {[%clk 0:00:00]} 76. Rb1 {[%clk 0:00:04]} 1-0


[Site "https://www.chess.com"]

[Event "Titled Tuesday Blitz May 30 Early 2023"]
[White "Fudalej, Michal"]
[Black "Fishchuk, Vladyslav"]
[WhiteFideId "1118781"]
[BlackFideId "34122117"]
[WhiteElo "2088"]
[BlackElo "2082"]
[Result "0-1"]
[Round "05"]
[TimeControl "180+2"]
[Date "2023.05.30"]
[WhiteClock "0:00:00"]
[BlackClock "0:00:58"]

1. Nf3 {[%clk 0:03:00]}  d5 {[%clk 0:02:58]} 2. g3 {[%clk 0:03:00]}  Nf6 {[%clk 0:02:54]} 3. Bg2 {[%clk 0:03:01]}  g6 {[%clk 0:02:53]} 4. b3 {[%clk 0:02:59]}  Bg7 {[%clk 0:02:53]} 5. Bb2 {[%clk 0:02:59]}  O-O {[%clk 0:02:53]} 6. c4 {[%clk 0:02:59]}  c6 {[%clk 0:02:38]} 7. O-O {[%clk 0:02:58]}  a5 {[%clk 0:02:35]} 8. d3 {[%clk 0:02:44]}  a4 {[%clk 0:02:34]} 9. b4 {[%clk 0:02:42]}  dxc4 {[%clk 0:02:01]} 10. dxc4 {[%clk 0:02:40]}  Bf5 {[%clk 0:01:58]} 11. a3 {[%clk 0:02:32]}  Nbd7 {[%clk 0:01:57]} 12. Nd4 {[%clk 0:02:16]}  Nb6 {[%clk 0:01:37]} 13. Nxf5 {[%clk 0:02:09]}  gxf5 {[%clk 0:01:37]} 14. Qc2 {[%clk 0:02:04]}  e6 {[%clk 0:01:33]} 15. Rd1 {[%clk 0:01:53]}  Qe7 {[%clk 0:01:29]} 16. Nd2 {[%clk 0:01:53]}  Rfd8 {[%clk 0:01:28]} 17. Nf3 {[%clk 0:01:50]}  Ne4 {[%clk 0:01:25]} 18. Bxg7 {[%clk 0:01:46]}  Kxg7 {[%clk 0:01:26]} 19. Ne5 {[%clk 0:01:41]}  Qf6 {[%clk 0:01:22]} 20. f4 {[%clk 0:00:55]}  Rxd1+ {[%clk 0:01:15]} 21. Rxd1 {[%clk 0:00:54]}  Rd8 {[%clk 0:01:15]} 22. c5 {[%clk 0:00:33]}  Rxd1+ {[%clk 0:01:14]} 23. Qxd1 {[%clk 0:00:34]}  Nd5 {[%clk 0:01:06]} 24. Qxa4 {[%clk 0:00:31]}  Ne3 {[%clk 0:01:03]} 25. Bf3 {[%clk 0:00:28]}  Qd8 {[%clk 0:01:03]} 26. Nd3 {[%clk 0:00:24]}  Qd4 {[%clk 0:00:59]} 27. Kh1 {[%clk 0:00:00]}  Qa1+ {[%clk 0:00:58]} 0-1


[Site "https://www.chess.com"]

[Event "Titled Tuesday Blitz May 30 Early 2023"]
[White "Larina, Maria"]
[Black "Fiedorek, Michal"]
[WhiteFideId "24113182"]
[BlackFideId "1199528"]
[WhiteElo "1848"]
[BlackElo "2135"]
[Result "0-1"]
[Round "05"]
[TimeControl "180+2"]
[Date "2023.05.30"]
[WhiteClock "0:00:20"]
[BlackClock "0:00:05"]

1. e4 {[%clk 0:03:00]}  c5 {[%clk 0:02:58]} 2. Nc3 {[%clk 0:02:59]}  Nc6 {[%clk 0:02:58]} 3. g3 {[%clk 0:02:59]}  g6 {[%clk 0:02:57]} 4. Bg2 {[%clk 0:02:58]}  Bg7 {[%clk 0:02:57]} 5. d3 {[%clk 0:02:58]}  e5 {[%clk 0:02:57]} 6. Be3 {[%clk 0:02:57]}  d6 {[%clk 0:02:58]} 7. Qd2 {[%clk 0:02:57]}  Nge7 {[%clk 0:02:57]} 8. f4 {[%clk 0:02:55]}  O-O {[%clk 0:02:56]} 9. Nf3 {[%clk 0:02:55]}  Rb8 {[%clk 0:02:47]} 10. O-O {[%clk 0:02:54]}  f5 {[%clk 0:02:23]} 11. fxe5 {[%clk 0:02:47]}  Nxe5 {[%clk 0:02:22]} 12. Nxe5 {[%clk 0:02:44]}  Bxe5 {[%clk 0:02:21]} 13. Bg5 {[%clk 0:02:41]}  Qc7 {[%clk 0:01:54]} 14. Bh6 {[%clk 0:02:13]}  Re8 {[%clk 0:01:31]} 15. exf5 {[%clk 0:02:06]}  Bxf5 {[%clk 0:01:30]} 16. Bd5+ {[%clk 0:02:06]}  Nxd5 {[%clk 0:01:23]} 17. Nxd5 {[%clk 0:02:07]}  Qc6 {[%clk 0:01:19]} 18. c4 {[%clk 0:01:46]}  Bd4+ {[%clk 0:01:01]} 19. Kg2 {[%clk 0:01:37]}  b5 {[%clk 0:01:00]} 20. Rxf5 {[%clk 0:01:36]}  gxf5 {[%clk 0:00:56]} 21. Qg5+ {[%clk 0:01:35]}  Kh8 {[%clk 0:00:46]} 22. b3 {[%clk 0:01:19]}  Bxa1 {[%clk 0:00:40]} 23. Qxf5 {[%clk 0:01:11]}  bxc4 {[%clk 0:00:36]} 24. Bg5 {[%clk 0:01:08]}  Qb7 {[%clk 0:00:26]} 25. dxc4 {[%clk 0:01:03]}  Qg7 {[%clk 0:00:19]} 26. Bf4 {[%clk 0:00:46]}  Re2+ {[%clk 0:00:16]} 27. Kf3 {[%clk 0:00:43]}  Rbe8 {[%clk 0:00:15]} 28. h4 {[%clk 0:00:28]}  Bd4 {[%clk 0:00:15]} 29. g4 {[%clk 0:00:25]}  Rf2+ {[%clk 0:00:12]} 30. Kg3 {[%clk 0:00:26]}  Rf8 {[%clk 0:00:10]} 31. Qe4 {[%clk 0:00:22]}  Rf1 {[%clk 0:00:06]} 32. h5 {[%clk 0:00:18]}  Be5 {[%clk 0:00:06]} 33. Bxe5 {[%clk 0:00:17]}  Qxe5+ {[%clk 0:00:06]} 34. Qxe5+ {[%clk 0:00:18]}  dxe5 {[%clk 0:00:07]} 35. g5 {[%clk 0:00:18]}  Rg1+ {[%clk 0:00:06]} 36. Kh2 {[%clk 0:00:18]}  Rxg5 {[%clk 0:00:06]} 37. h6 {[%clk 0:00:18]}  Rf3 {[%clk 0:00:04]} 38. Nf6 {[%clk 0:00:19]}  Rxf6 {[%clk 0:00:04]} 39. Kh3 {[%clk 0:00:20]}  Rxh6# {[%clk 0:00:05]} 0-1


[Site "https://www.chess.com"]